Cogmind - Beta 10.1 @@@ ROGUE MODE // 2020.10.06 @ 19:11:58 Player: Tmvn Result: Self-destructed Performance ------------- Evolutions (1) 500 Regions Visited (2) 400 Robots Destroyed (5) 25 Value Destroyed (105) 105 Prototype IDs (0) 0 Alien Tech Used (0) 0 Bonus (0) 0 TOTAL SCORE: 1030 Bonus ------- None Cogmind --------- Core Integrity 300/400 Matter 177/300 Energy 250/250 System Corruption 0% Temperature Cool (0) Movement Rolling (110) Ox1 Location -9/Materials Parts ------- > --- POWER (1) -------- Ion Engine > --- PROPULSION (2) --- Compact Wheel > --- UTILITY (4) ------ Small Storage Unit Large Storage Unit Improved Signal Interpreter > --- WEAPON (2) ------- Light Assault Rifle Rocket Launcher > --- INVENTORY (12) --- Light Ion Engine Wheel Wheel Peak State ------------ > --- POWER ------------ Ion Engine > --- PROPULSION ------- Compact Wheel > --- UTILITY ---------- Small Storage Unit Sensor Array Improved Signal Interpreter > --- WEAPON ----------- Light Assault Rifle Rocket Launcher > --- INVENTORY -------- Light Ion Engine Wheel Wheel [Rating: 9] Favorites ----------- Power Light Ion Engine Engine Light Ion Engine Propulsion Compact Wheel Leg Aluminum Leg Wheel Compact Wheel Utility Small Storage Unit Device Sensor Array Storage Small Storage Unit Processor Improved Signal Interpreter Weapon EM Pulse Gun Energy Gun EM Pulse Gun Ballistic Gun Light Assault Rifle Launcher Rocket Launcher Build | -11 -10 -9 ------- Run | Scr Mat Mat Slots Evolved 2 | . . 2 Power . | . . . Propulsion . | . . . Utility 2 | . . 2 Weapon . | . . . Parts Attached 13 | . 9 4 Power 3 | . 3 . Engine 3 | . 3 . Core . | . . . Reactor . | . . . Propulsion 3 | . 3 . Treads . | . . . Leg . | . . . Wheel 3 | . 3 . Hover . | . . . Flight . | . . . Utility 4 | . 2 2 Device 2 | . 2 . Storage 1 | . . 1 Processor 1 | . . 1 Hackware . | . . . Protection . | . . . Artifact . | . . . Weapon 3 | . 1 2 Energy Gun 1 | . 1 . Energy Cannon . | . . . Ballistic Gun 1 | . . 1 Ballistic Cannon . | . . . Launcher 1 | . . 1 Special Weapon . | . . . Impact Weapon . | . . . Slashing Weapon . | . . . Piercing Weapon . | . . . Special Melee Weapon . | . . . Unidentified Prototypes . | . . . Parts Lost 4 | . 1 3 Power . | . . . Propulsion 1 | . . 1 Utility 1 | . . 1 Weapon 2 | . 1 1 Highest Loss Streak 3 | . 1 3 Average Slot Usage (%) 87 | . 94 74 Engine 13 | . 14 11 Leg 10 | . 15 . Wheel 14 | . 12 17 Device 9 | . 9 8 Storage 13 | . 14 12 Processor 3 | . . 9 Energy Gun 19 | . 26 6 Ballistic Gun 1 | . . 4 Launcher 1 | . . 4 Naked Turns . | . . . Heaviest Build 30 | 11 12 30 Greatest Support 32 | 20 32 32 Greatest Overweight (x) 1 | . . 1 Average Overweight (x) . | . . . Largest Inventory Capacity 12 | . 6 12 Average Capacity 6 | . 6 6 Most Carried 6 | . 6 5 Average Carried 4 | . 5 4 Final Capacity 12 | 6 6 12 Final Carried 6 | 6 6 3 Class Distribution -------------------- 100% | Mutant Dominant Class ---------------- Mutant | -10/Materials Mutant | -9/Materials Resources | -11 -10 -9 ----------- Run | Scr Mat Mat Matter Collected 271 | 200 53 18 Remotely . | . . . Salvage Created 105 | . 87 18 Parts 12 | . 12 . Haulers Intercepted . | . . . Recyclers Shooed . | . . . Parts Field Recycled . | . . . Retrieved Matter . | . . . Parts Self-Destructed . | . . . Prevented . | . . . Kills | -11 -10 -9 ------- Run | Scr Mat Mat Combat Hostiles Destroyed 2 | . 1 1 Guns 1 | . 1 . AOE 1 | . . 1 Classes Destroyed 4 | . 3 1 Builder 2 | . 1 1 Watcher 1 | . 1 . Grunt 1 | . 1 . Sentry 1 | . . 1 Best Kill Streak 2 | . 1 2 Combat Bots Only 1 | . 1 1 Max Kills in Single Turn 1 | . 1 1 Gunslinging . | . . . Exploded 1 | . . 1 Melee . | . . . Uniques/NPCs Destroyed . | . . . Combat | -11 -10 -9 -------- Run | Scr Mat Mat Damage Taken 377 | . 175 202 Core 132 | . 32 100 Absorbed by Shields . | . . . Core Remaining (%) 93 | 100 87 . Volleys Fired 14 | . 7 7 Largest 2 | . 2 2 Hottest 80 | . 80 53 Shots Fired 28 | . 14 14 Gun 21 | . 14 7 Cannon . | . . . Launcher 7 | . . 7 Special . | . . . Kinetic 7 | . . 7 Thermal . | . . . Explosive 7 | . . 7 Electromagnetic 14 | . 14 . Robot Hit Streak 7 | . 3 7 Robot Miss Streak 2 | . 2 1 Penetration Max . | . . . Secondary Targets . | . . . Shots Hit Robots 18 | . 8 10 Core Hits 8 | . 4 4 Critical Hits . | . . . Critical Kills . | . . . Critical Parts Destroyed . | . . . Melee Attacks . | . . . Impact . | . . . Slashing . | . . . Piercing . | . . . Sneak Attacks . | . . . Combat Hostiles . | . . . Follow-up Attacks . | . . . Damage Inflicted 313 | . 115 198 Guns 160 | . 115 45 Cannons . | . . . Explosions 153 | . . 153 Melee . | . . . Ramming . | . . . Kinetic 45 | . . 45 Thermal . | . . . Explosive 153 | . . 153 Electromagnetic 115 | . 115 . Impact . | . . . Slashing . | . . . Piercing . | . . . Highest Corruption 3 | . 3 . Average Corruption 2 | . 2 . Corruption Purged . | . . . Effects 1 | . 1 . Message Errors 1 | . 1 . Overload Shots . | . . . Overflow Damage . | . . . Projectiles . | . . . Explosions . | . . . Melee . | . . . Knockbacks . | . . . Impact . | . . . Kinetic . | . . . Secondary . | . . . Self-Inflicted Damage 55 | . . 55 Shots 1 | . . 1 Rammed . | . . . Targets Rammed . | . . . Kicked . | . . . Crushed . | . . . Highest Temperature 90 | . 90 21 Average Temperature 26 | . 35 9 Received Heat Transfer 150 | . 96 54 Siege Activations . | . . . Robots Corrupted . | . . . Combat Hostiles . | . . . Parts Fried . | . . . Impact Corruptions . | . . . Robots Melted . | . . . Combat Hostiles . | . . . Parts Melted . | . . . Heat Transferred . | . . . Parts Sabotaged . | . . . Parts Stolen . | . . . Parts Stripped . | . . . Power Chain Reactions . | . . . Missiles Intercepted . | . . . Alert | -11 -10 -9 ------- Run | Scr Mat Mat Peak Influence 102 | . 102 38 Initial 38 | . . 38 Average 25 | . 22 31 Maximum Alert Level . | . . . Low Security (%) 100 | . 100 100 Level 1 . | . . . Level 2 . | . . . Level 3 . | . . . Level 4 . | . . . Level 5 . | . . . High Security . | . . . Max Security . | . . . Squads Dispatched 2 | . 2 . Investigation 1 | . 1 . Extermination . | . . . Reinforcement 1 | . 1 . Assault . | . . . Garrison . | . . . Intercept . | . . . Construction Impeded . | . . . Haulers Reinforced . | . . . Stealth | -11 -10 -9 --------- Run | Scr Mat Mat Distress Signals . | . . . Communications Jammed . | . . . Distress Signals . | . . . Times Spotted 8 | . 6 2 Peak Tracking Total 2 | . 2 1 Tactical Retreats . | . . . Traps | -11 -10 -9 ------- Run | Scr Mat Mat Traps Triggered 4 | . 4 . Indirectly . | . . . Trap Hack Attempts . | . . . Triggered . | . . . Disarmed . | . . . Reprogrammed . | . . . Reused . | . . . Traps Extracted . | . . . Installed . | . . . Triggered . | . . . Machines | -11 -10 -9 ---------- Run | Scr Mat Mat Machines Disabled . | . . . Max in Single Turn . | . . . Machines Sabotaged . | . . . Garrisons Compromised . | . . . Overloaded Fab Kills . | . . . Fab Network Shutdowns . | . . . Hacking | -11 -10 -9 --------- Run | Scr Mat Mat Machines Accessed 2 | . 1 1 Terminals 1 | . . 1 Fabricators . | . . . Repair Stations . | . . . Recycling Units 1 | . 1 . Scanalyzers . | . . . Garrison Access . | . . . Total Hacks 4 | . 1 3 Successful 3 | . 1 2 Failed 1 | . . 1 Catastrophic . | . . . Database Lockouts . | . . . Manual 2 | . 1 1 Terminals 3 | . . 3 Fabricators . | . . . Repair Stations . | . . . Recycling Units 1 | . 1 . Scanalyzers . | . . . Garrison Access . | . . . Terminal Hacks 2 | . . 2 Unreport Threat 1 | . . 1 Registered Components 1 | . . 1 Fabricator Hacks . | . . . Repair Station Hacks . | . . . Recycling Unit Hacks . | . . . Scanalyzer . | . . . Garrison Access Hacks . | . . . Unauthorized Hacks 1 | . 1 . Terminals . | . . . Fabricators . | . . . Repair Stations . | . . . Recycling Units 1 | . 1 . Tunnel 1 | . 1 . Scanalyzers . | . . . Garrison Access . | . . . Data Cores Recovered . | . . . Used . | . . . Hacking Detections 1 | . . 1 Full Trace Events . | . . . Feedback Events . | . . . Feedback Blocked . | . . . Robot Schematics Acquired . | . . . Robots Built . | . . . Matter . | . . . Time . | . . . Total Robot Build Rating . | . . . Part Schematics Acquired . | . . . Parts Built . | . . . Matter . | . . . Time . | . . . Total Part Build Rating . | . . . Parts Repaired . | . . . Time . | . . . Parts Recycled . | . . . Recycled Matter . | . . . Retrieved Matter . | . . . Retrieved Components . | . . . Parts Scanalyzed . | . . . Part Schematics Acquired . | . . . Parts Damaged . | . . . Bothacking | -11 -10 -9 ------------ Run | Scr Mat Mat Used RIF Installer . | . . . Robots Hacked . | . . . Non-combat . | . . . Combat . | . . . Robot Hacks Applied . | . . . Relay Couplers Released . | . . . Robots Rewired . | . . . Allies Hacked . | . . . Hacks Repelled . | . . . Allies | -11 -10 -9 -------- Run | Scr Mat Mat Total Allies . | . . . Largest Group . | . . . Highest-Rated Group . | . . . Highest-Rated Ally . | . . . Total Orders . | . . . Ally Attacks . | . . . Total Damage . | . . . Kills . | . . . Allies Corrupted . | . . . Allies Melted . | . . . Intel | -11 -10 -9 ------- Run | Scr Mat Mat Robot Analysis Total . | . . . Derelict Logs Recovered . | . . . Drone Launches . | . . . Drone Recoveries . | . . . Exploration | -11 -10 -9 ------------- Run | Scr Mat Mat Turns Passed 305 | . 203 102 Spaces Moved 225 | 1 148 76 Core . | . . . Treads . | . . . Legs 88 | 1 87 . Wheels 137 | . 61 76 Hover . | . . . Flight . | . . . Fastest Speed 100 | 120 100 100 Average Speed 108 | 120 111 101 Slowest Speed 120 | 120 120 110 Overloaded Moves . | . . . Propulsion Burnouts . | . . . Robots Hopped . | . . . Cave-ins Triggered . | . . . Exploration Rate (%) 11 | 3 21 9 Regions Visited 2 Branch Regions . Pre-discovered Areas 1 | . 1 . Known Exits Taken . | . . . Unknown Exits Taken 2 | 1 1 . Scrap Searched . | . . . Spaces Dug . | . . . Terrain Destroyed 60 | . . 60 Melee . | . . . Projectile . | . . . AOE 60 | . . 60 Terrain Rammed . | . . . Walls Destroyed . | . . . Machines Disabled . | . . . Actions | -11 -10 -9 --------- Run | Scr Mat Mat Total 258 | . 170 88 Wait . | . . . Move 223 | . 147 76 Hop . | . . . Pick Up 3 | . 3 . Fast Attach 8 | . 6 2 Attach 4 | . 2 2 Detach . | . . . Swap 1 | . 1 . Drop 5 | . 4 1 Fire 14 | . 7 7 Melee . | . . . Ram . | . . . Kick . | . . . Crush . | . . . Escape Stasis . | . . . Rewire . | . . . Trap . | . . . Miscellaneous . | . . . Route ------- -11/Scrapyard -10/Materials -9/Materials History --------- Turn | Location | Event 1 | -11/Scrapyard | Discovered new exit (range 0) 1 | -11/Scrapyard | Entered Materials 141 | -10/Materials | Discovered new exit (range 12) 204 | -10/Materials | Entered another Materials area 204 | -9/Materials | Evolved 2 slots: Utility x2 306 | -9/Materials | Self-destructed Last Messages --------------- 00215_ Acquired Imp. Signal Interpreter. 00261_ EM Pulse Gun destroyed. 00261_ Com. Wheel destroyed. 00262_ Connecting with Terminal... 00262_ Current location identified: Materials >>Alert(Purge) Purged threat record, alert level lowered. >>Inventory(Components) Retrieving component inventory records... Found 2 registered component stockpiles: KVX6PSOET3: Datajack QW7B0X9W9K: Weapon Shielding Downloaded coordinate data. 00280_ Sensor Array destroyed. 00281_ Y-45 Defender destroyed. 00284_ U-05 Engineer destroyed. 00287_ Acquired 18 matter. 00288_ The unstable cave ceiling collapses. 00295_ Acquired Lrg. Storage Unit. 00297_ The unstable cave ceiling collapses. Map ----- +----------------------------------------------------+ | ????????????????????????????????? | | ????????????????????????????????? | | ??????????????#?????????????????? | | ??????????????# ????????????????? | | ??????????????# ????????????????? | | ??????????????# ????????????????? | | ??????????????# ##+###########??? | | ??????????????# ??? | | ??????????????# * #????# #??? | | ??????????????# #????# #??? | | ?????????????#####+#####???# #??? | | ????????###??# #???# #??? | | ?????#### ##?# ##### #### | | ???### # !!### """ """ + ## | | ??## !## """ """ ##### ## | | ?## !## """ """ #???# ## | | ?# ## #???# ## | | ?# !## #???# ## | | ?# !!### #???# ## | | ?# # ##############???# + | | ?# ### #?????# ### | | ?## ## ####### | | ??## #### + | | ???## #?# ########## | | ???# ##########+###????????? | | ???## @u #??????????? | | ??### ######### #???????????? | | ?# # !????# #???????????? | | ?# "T" # ??# #???????????? | | ?# #?""" ?# +????????????? | | ?# #??"" + #????????????? | | ?#########???" # #????????????? | | ????????????????# #????????????? | | ????????????????# #????????????? | | ????????????????# #????????????? | | ????????????????# #????????????? | | ????????????????# #????????????? | | ????????????????# #????????????? | | ????????????????? ????????????? | | ????????????????? ????????????? | | ????????????????? ????????????? | | ????????????????? ????????????? | | ????????????????????????????????? | | ????????????????????????????????? | | ????????????????????????????????? | | ????????????????????????????????? | | ????????????????????????????????? | | ????????????????????????????????? | | ????????????????????????????????? | | ????????????????????????????????? | +----------------------------------------------------+ Best States ------------- Heat Dissipation 28 Energy Generation 10 Energy Capacity 250 Matter Stores 300 Matter Capacity 300 Sight Range 16 Robot Scan Range 10 Terrain Scan Density 10 Evasion (%) 40 Item Schematics ----------------- None Robot Schematics ------------------ None Fabricated ------------ Nothing Alien Tech Used ----------------- None Achievements -------------- None Challenges ------------ None Game ------ Seed LinkedIntegratedCasing Manual? 0 Play Time 00:04:06 Cumulative 45.5 hours Start 2020.10.06 @ 17:37:30 End 2020.10.06 @ 19:11:58 Sessions 3 Manual Loads 0 Difficulty Rogue Special Mode None Game No. 85 Rogue 85 Adventurer 0 Explorer 0 Win Type - Total 0 Types 0/0/0/0/0/0/0/0/0 Lore% 28 Gallery% 43 Achievement% 30 Wizard Run 0 Options --------- ASCII 1 Keyboard 1 Movement Vi Keybinds 0 Fullscreen 2 Font 24/Terminus Map View 76x50 Tactical HUD 1 Map Filters SATURATION(70) Filters SATURATION(65)|SHIFT_HUE(15) Steam 1 RUN: e89f68f3-b906-4bf6-9d80-5018d724f79e